bitfinex-derivatives/quotes_SOLF0:USTF0_20241021
["timestamp","ask_amount","ask_price","bid_price","bid_amount"]
[1729546228829,9.16,167.45,167.42,2.9871]
[1729546229729,9.16,167.45,167.41,2.9873]
[1729546230039,9.16,167.45,167.4,17.3277]
[1729546230533,9.16,167.45,167.41,2.9873]
[1729546230727,9.16,167.45,167.4,14.8331]
[1729546231835,9.16,167.45,167.42,2.9872]
[1729546233237,9.16,167.44,167.42,2.9872]
[1729546234241,9.16,167.44,167.4,5.6731]
[1729546234432,9.16,167.44,167.41,2.9873]
[1729546235537,7.3862,167.48,167.43,2.987]
[1729546235737,9.16,167.45,167.43,2.987]
[1729546236242,9.16,167.45,167.4,5.6731]
[1729546236936,9.16,167.45,167.42,2.9871]
[1729546239346,9.16,167.44,167.42,2.9871]
[1729546241344,9.16,167.44,167.4,1.2731]
[1729546241639,9.16,167.44,167.41,2.9873]
[1729546245747,9.16,167.42,167.41,2.9873]
[1729546247846,9.16,167.42,167.38,4.4]
[1729546248055,9.16,167.42,167.4,2.9874]
[1729546248652,9.16,167.42,167.39,2.9877]
[1729546249953,9.16,167.41,167.39,2.9877]
[1729546251346,9.16,167.41,167.34,1.49358756]
[1729546251546,4.4,167.44,167.32,4.4]
[1729546251547,9.16,167.38,167.32,4.4]
[1729546251851,9.16,167.38,167.35,2.9883]
[1729546252046,9.16,167.38,167.32,4.4]
[1729546252751,9.16,167.38,167.31,10.476]
[1729546252947,9.16,167.38,167.32,4.4]
[1729546253750,9.16,167.35,167.32,4.4]
[1729546253956,9.16,167.34,167.32,4.4]
[1729546254559,9.16,167.34,167.31,4.305]
[1729546254855,9.16,167.34,167.31,2.989]
[1729546257546,9.16,167.32,167.31,2.989]
[1729546257954,9.16,167.32,167.28,250.97978864]
[1729546259859,9.16,167.32,167.3,2.9892]
[1729546263971,9.16,167.32,167.29,2.9894]
[1729546264358,9.16,167.31,167.29,2.9894]
[1729546265054,9.16,167.31,167.28,249.56948864]
[1729546265264,9.16,167.29,167.12,2.91476104]
[1729546265464,4.4,167.32,167.12,2.91476104]
[1729546265465,9.16,167.26,167.2,9.16]
[1729546265764,9.16,167.26,167.23,2.9905]
[1729546266361,9.16,167.26,167.22,2.9907]
[1729546266559,9.16,167.26,167.16,9.675403]
[1729546266868,9.16,167.26,167.19,9.16]
[1729546267070,9.16,167.26,167.23,2.9905]
[1729546268968,9.16,167.24,167.23,2.9905]
[1729546270570,9.16,167.24,167.19,9.16]
[1729546270773,9.16,167.24,167.22,2.9907]
[1729546273668,9.16,167.23,167.16,1.3041]
[1729546273859,9.16,167.2,167.17,1.09895562]
[1729546274060,9.16,167.2,167.16,1.3041]
[1729546274466,9.16,167.2,167.17,2.9916]
[1729546275468,9.16,167.2,167.16,2.9918]
[1729546276169,9.16,167.2,167.15,120.65015694]
[1729546276368,9.16,167.2,167.15,123.64205694]
[1729546276571,1.2316,167.26,167.16,9.16]
[1729546276771,9.16,167.24,167.18,9.16]
[1729546276968,9.16,167.24,167.2,2.9911]
[1729546277976,9.16,167.24,167.21,2.9909]
[1729546278988,9.16,167.24,167.18,10.4196]
[1729546279170,9.16,167.24,167.19,1.09888001]
[1729546280073,9.16,167.24,167.21,2.9908]
[1729546282380,9.16,167.24,167.18,10.4196]
[1729546282575,9.16,167.24,167.2,2.9911]
[1729546283575,9.16,167.22,167.2,2.9911]
[1729546284580,9.16,167.22,167.18,1.2596]
[1729546284781,9.16,167.24,167.21,2.9908]
[1729546285172,9.16,167.24,167.2,2.991]
[1729546285383,9.16,167.24,167.18,10.4196]
[1729546285570,9.16,167.24,167.19,1.09887972]
[1729546286490,5.94178432,167.26,167.2,2.9911]
[1729546286780,9.16,167.24,167.2,2.9911]
[1729546286977,9.16,167.24,167.18,1.2596]
[1729546288383,9.16,167.2,167.04,67.30111245]
[1729546288580,9.16,167.2,167.16,1.09906135]
[1729546288982,9.16,167.2,167.14,14.7783]
[1729546289485,9.16,167.18,167.13,4.4]
[1729546290385,4.4,167.23,167.13,4.4]
[1729546290386,9.16,167.17,167.14,2.9921]
[1729546290782,4.4,167.23,167.13,4.4]
[1729546290990,9.16,167.16,167.13,4.4]
[1729546291381,9.16,167.16,167.12,6.8664]
[1729546292390,9.16,167.16,167.14,2.9922]
[1729546294990,9.16,167.15,167.12,5.6411]
[1729546295194,9.16,167.15,167.12,4.4]
[1729546295592,2.6125,167.24,167.09,9.16]
[1729546295794,9.16,167.15,167.1,1.09951313]
[1729546295994,9.16,167.15,167.1,5.49951313]
[1729546296196,9.16,167.15,167.1,4.4]
[1729546296994,9.16,167.15,167.12,2.9924]
[1729546300701,9.16,167.14,167.11,2.9927]
[1729546302104,9.16,167.12,167.06,2.4784]
[1729546302306,9.16,167.11,167.07,1.09966562]
[1729546302611,9.16,167.11,167.06,16.0384]
[1729546302803,9.16,167.11,167.07,1.09966649]
[1729546303503,9.16,167.11,167.08,2.9932]
[1729546304010,9.16,167.11,167.09,2.9931]
[1729546307300,9.16,167.11,167.08,2.9932]
[1729546309311,9.16,167.1,167.06,7.3935]
[1729546310211,9.16,167.1,167.06,2.9935]
[1729546311117,9.16,167.08,167.06,2.9935]
[1729546311412,9.16,167.07,167.03,2.994]
[1729546311609,9.16,167.07,167.04,1.09985586]
[1729546311815,9.16,167.07,167.03,4.4]
[1729546312315,9.16,167.05,167.01,4.4]
[1729546312516,9.16,167.05,167.02,1.09996324]
[1729546313611,9.16,167.05,167.01,4.4]
[1729546313920,9.16,167.05,167.02,2.9943]
[1729546314419,9.16,167.04,167.01,2.9945]
[1729546315613,9.16,167.04,167.0,7.3946]
[1729546315819,9.16,167.04,167.0,4.4]
[1729546316807,9.16,167.04,167.0,2.9947]
[1729546317408,9.16,167.04,167.01,2.9945]
[1729546317817,6.9864,167.09,166.99,10.4152]
[1729546318113,9.16,167.08,167.02,9.16]
[1729546318316,9.16,167.08,167.03,4.4]
[1729546319014,9.16,167.08,167.05,2.9937]
[1729546319218,9.16,167.08,167.03,4.4]
[1729546319516,9.16,167.1,167.05,9.16]
[1729546320520,9.16,167.1,167.09,2.9931]
[1729546320716,9.16,167.1,167.05,9.16]
[1729546320918,9.16,167.1,167.06,1.09976025]
[1729546321319,9.16,167.1,167.08,2.9932]
[1729546321717,2.9924,167.14,167.08,2.9932]
[1729546321921,9.16,167.11,167.08,2.9932]
[1729546322124,9.16,167.11,167.07,4.4]
[1729546322323,9.16,167.12,167.07,4.4]
[1729546323124,9.16,167.12,167.09,2.9931]
[1729546324520,6.8544,167.16,167.07,4.4]
[1729546324723,6.8544,167.16,167.07,14.8039]
[1729546324724,9.16,167.13,167.07,14.8039]
[1729546325521,1.2338,167.16,167.11,9.16]
[1729546325721,1.3319,167.23,167.11,9.16]
[1729546325722,9.16,167.17,167.11,13.56]
[1729546325926,1.3386,167.22,167.12,9.16]
[1729546326228,9.16,167.21,167.16,9.16]
[1729546326425,1.2975,167.23,167.16,13.56]
[1729546326624,1.3319,167.29,167.21,2.9909]
[1729546326625,9.16,167.24,167.21,2.9909]
[1729546326830,9.16,167.24,167.18,9.16]
[1729546327829,9.16,167.24,167.2,2.9911]
[1729546329227,9.16,167.25,167.21,4.4]
[1729546329831,9.16,167.25,167.22,2.9906]
[1729546330735,2.9897,167.28,167.22,2.9906]
[1729546330921,9.16,167.26,167.22,2.9906]
[1729546334533,2.6361,167.29,167.21,4.4]
[1729546334741,9.16,167.27,167.23,2.9906]
[1729546335129,2.6361,167.29,167.21,13.56]
[1729546335331,10.4986,167.29,167.23,9.16]
[1729546335630,10.4986,167.29,167.21,4.4]
[1729546335631,9.16,167.32,167.27,9.16]
[1729546335832,12.1489,167.33,167.27,12.1497]
[1729546336441,4.4,167.34,167.26,4.4]
[1729546336442,4.4,167.34,167.29,2.9894]
[1729546336732,9.16,167.3,167.26,4.4]
[1729546337143,12.1496,167.29,167.25,4.4]
[1729546337531,9.16,167.29,167.25,4.4]
[1729546339932,2.989,167.32,167.26,2.9899]
[1729546340131,12.149,167.32,167.26,2.9899]
[1729546344230,12.149,167.32,167.25,13.56]
[1729546345336,12.149,167.32,167.26,2.9899]
[1729546345536,2.989,167.32,167.26,2.9899]
[1729546345736,12.149,167.32,167.26,2.9899]
[1729546351045,2.6019,167.33,167.24,2.9904]
[1729546351046,12.1496,167.29,167.24,2.9904]
[1729546352545,2.9895,167.3,167.24,12.1504]
[1729546353443,2.9895,167.3,167.25,9.16]
[1729546353651,2.9895,167.3,167.25,12.1502]
[1729546361651,2.9896,167.29,167.25,12.1502]
[1729546365555,2.9896,167.29,167.25,9.16]
[1729546369461,2.9893,167.31,167.24,7.3903]
[1729546369662,9.16,167.3,167.24,9.16]
[1729546369958,2.9905,167.24,167.2,9.16]
[1729546371256,2.9905,167.24,167.19,16.5512]
[1729546372153,2.9896,167.29,167.24,2.9903]
[1729546372656,13.56,167.3,167.25,9.16]
[1729546373260,16.5495,167.3,167.25,12.1501]
[1729546373865,4.4,167.3,167.25,9.16]
[1729546374059,9.16,167.31,167.23,4.4]
[1729546374060,12.1492,167.31,167.26,9.16]
[1729546374865,2.9892,167.31,167.26,9.16]
[1729546375969,2.9892,167.31,167.27,2.9898]
[1729546378365,12.1492,167.31,167.27,2.9898]
[1729546385974,12.1492,167.31,167.24,4.4]
[1729546385975,9.16,167.3,167.2,1.3165]
[1729546386174,9.16,167.28,167.22,9.16]
[1729546386473,9.16,167.26,167.21,13.56]
[1729546387871,9.16,167.26,167.22,2.9907]
[1729546393577,9.16,167.26,167.22,4.48577419]
[1729546394181,9.16,167.26,167.23,1.49507419]
[1729546394378,9.16,167.26,167.24,1.49507419]
[1729546394578,9.16,167.26,167.23,1.49507419]
[1729546394779,9.16,167.26,167.24,1.49507419]
[1729546394978,9.16,167.26,167.23,1.49507419]
[1729546395280,9.16,167.26,167.24,1.49507419]
[1729546395479,9.16,167.26,167.23,1.49507419]
[1729546395682,9.16,167.26,167.24,1.49507419]
[1729546395882,9.16,167.26,167.23,1.49507419]
[1729546396185,9.16,167.26,167.24,1.49507419]
[1729546396382,9.16,167.26,167.23,1.49507419]
[1729546396584,9.16,167.26,167.24,1.49507419]
[1729546396779,9.16,167.26,167.25,1.49507419]
[1729546396980,9.16,167.26,167.22,2.9907]
[1729546397481,9.16,167.26,167.23,1.49509224]
[1729546397779,9.16,167.26,167.24,1.49509224]
[1729546398078,9.16,167.26,167.25,1.49509224]
[1729546398280,9.16,167.26,167.22,2.9907]
[1729546398584,9.16,167.26,167.23,1.49509226]
[1729546398787,9.16,167.26,167.24,1.49509226]
[1729546398974,9.16,167.26,167.23,1.49509226]
[1729546399287,9.16,167.26,167.24,1.49509226]
[1729546399585,9.16,167.26,167.23,1.49509226]
[1729546399781,9.16,167.26,167.24,1.49509226]
[1729546399990,9.16,167.26,167.23,1.49509226]
[1729546400286,9.16,167.26,167.24,1.49509226]
[1729546400487,9.16,167.26,167.23,1.49509226]
[1729546400681,9.16,167.26,167.24,1.49509226]
[1729546400883,9.16,167.26,167.23,1.49509226]
[1729546401083,9.16,167.26,167.24,1.49509226]
[1729546401281,9.16,167.26,167.23,1.49509226]
[1729546401477,9.16,167.26,167.24,1.49509226]
[1729546401784,9.16,167.26,167.23,1.49509226]
[1729546401985,9.16,167.26,167.24,1.49509226]
[1729546402282,9.16,167.26,167.23,1.49509226]
[1729546402476,9.16,167.26,167.24,1.49509226]
[1729546402680,9.16,167.26,167.23,1.49509226]
[1729546402888,9.16,167.26,167.24,1.49509226]
[1729546403088,9.16,167.26,167.22,2.9907]
[1729546403481,9.16,167.26,167.23,1.49509322]
[1729546403681,9.16,167.26,167.24,1.49509322]
[1729546403881,9.16,167.26,167.25,1.49509322]
[1729546404183,9.16,167.26,167.23,1.49509322]
[1729546404381,9.16,167.26,167.24,1.49509322]
[1729546404581,9.16,167.26,167.25,1.49509322]
[1729546404784,9.16,167.26,167.23,1.49509322]
[1729546405087,9.16,167.26,167.24,1.49509322]
[1729546405388,9.16,167.26,167.22,2.9907]
[1729546405587,9.16,167.26,167.23,1.49509548]
[1729546405788,9.16,167.26,167.24,1.49509548]
[1729546405985,9.16,167.26,167.25,1.49509548]
[1729546406185,9.16,167.26,167.23,1.49509548]
[1729546406386,9.16,167.26,167.24,1.49509548]
[1729546406583,9.16,167.26,167.25,1.49509548]
[1729546406782,9.16,167.26,167.23,1.49509548]
[1729546406986,9.16,167.26,167.22,2.9907]
[1729546406987,9.16,167.26,167.24,1.49509548]
[1729546407191,9.16,167.26,167.25,1.49509548]
[1729546407386,9.16,167.26,167.23,1.49509548]
[1729546407594,12.1501,167.26,167.24,1.49509548]
[1729546407891,2.9901,167.26,167.25,1.49509548]
[1729546408092,2.9904,167.25,167.22,1.49509548]
[1729546408279,2.9904,167.25,167.23,1.49509548]
[1729546408588,2.9904,167.25,167.24,1.49509548]
[1729546409289,2.9905,167.24,167.2,2.991]
[1729546409487,2.91802235,167.27,167.21,1.49525241]
[1729546409488,9.16,167.22,167.21,1.49525241]
[1729546409786,9.16,167.22,167.18,1.49525241]
[1729546409990,2.99737192,167.21,167.19,1.49525241]
[1729546410192,2.99737192,167.21,167.2,1.49525241]
[1729546410389,2.99737192,167.21,167.18,1.49525241]
[1729546410688,2.99737192,167.21,167.19,1.49525241]
[1729546410891,2.99737192,167.21,167.18,1.49525241]
[1729546411085,2.99737192,167.21,167.19,1.49525241]
[1729546411286,2.99737192,167.21,167.18,1.49525241]
[1729546411487,2.99737192,167.21,167.19,1.49525241]
[1729546411687,2.99737192,167.21,167.18,1.49525241]
[1729546411990,2.99737192,167.21,167.19,1.49525241]
[1729546412296,2.99737192,167.21,167.18,1.49525241]
[1729546413093,2.99737192,167.21,167.17,4.2355]
[1729546413387,12.15737192,167.21,167.18,1.49549546]
[1729546413587,12.15737192,167.21,167.17,4.2355]
[1729546413787,12.15737192,167.21,167.18,1.49550966]
[1729546414392,4.4,167.25,167.2,2.991]
[1729546414588,9.16,167.24,167.19,10.65550966]
[1729546414797,9.16,167.24,167.19,9.16]
[1729546414999,9.16,167.24,167.19,10.65550966]
[1729546415300,9.16,167.24,167.19,9.16]
[1729546415498,12.1505,167.24,167.19,13.64670966]
[1729546415695,12.1505,167.24,167.19,12.1512]
[1729546415894,12.1505,167.24,167.19,13.64670966]
[1729546416088,12.1505,167.24,167.19,12.1512]
[1729546417389,12.1507,167.23,167.18,1.49544124]
[1729546417590,12.1507,167.23,167.18,4.48684124]
[1729546418096,2.991,167.21,167.18,1.49544124]
[1729546418297,2.991,167.21,167.17,4.2355]
[1729546418505,2.991,167.21,167.17,5.73094124]
[1729546421102,2.991,167.21,167.17,4.2355]
[1729546426310,2.991,167.21,167.17,1.2439]
[1729546427405,2.991,167.21,167.17,4.2356]
[1729546429406,2.991,167.21,167.17,1.2439]
[1729546432916,9.16,167.23,167.17,10.4039]
[1729546433516,12.1507,167.23,167.18,2.9914]
[1729546435325,2.9907,167.23,167.18,2.9914]
[1729546435519,12.1507,167.23,167.18,2.9914]
[1729546439627,2.9908,167.22,167.18,2.9914]
[1729546443334,9.16,167.23,167.17,10.4039]
[1729546443529,3.0603536,167.25,167.2,9.16]
[1729546443832,9.16,167.26,167.2,9.16]
[1729546444031,15.14914485,167.26,167.22,2.9907]
[1729546444230,12.1501,167.26,167.22,2.9907]
[1729546444632,2.99,167.27,167.22,9.16]
[1729546444934,3.05497039,167.26,167.22,9.16]
[1729546445131,95.35933355,167.28,167.22,9.16]
[1729546446034,2.9901,167.26,167.22,12.1506]
[1729546446237,5.94698946,167.26,167.22,12.1506]
[1729546452441,2.5551,167.32,167.24,9.16]
[1729546452643,14.75851633,167.32,167.27,9.16]
[1729546453339,2.9894,167.3,167.27,9.16]
[1729546454343,2.9892,167.31,167.27,12.1498]
[1729546459143,2.9892,167.31,167.28,2.9897]
[1729546469850,2.9894,167.3,167.28,2.9897]
[1729546470753,2.9894,167.3,167.27,9.16]
[1729546470954,2.9894,167.3,167.27,12.1498]
[1729546474660,2.9894,167.3,167.27,9.16]
[1729546484262,2.99,167.27,167.24,1.3335]
[1729546484468,2.99,167.27,167.24,10.4935]
[1729546486870,2.99,167.27,167.24,9.16]
[1729546487069,9.16,167.29,167.21,4.38]
[1729546487070,2.9903,167.25,167.21,4.38]
[1729546487270,9.16,167.25,167.2,13.37865482]
[1729546487470,9.16,167.25,167.2,4.21865482]
[1729546487670,2.9908,167.23,167.19,150.83199591]
[1729546487859,3.02858096,167.23,167.19,150.83199591]
[1729546488061,3.02858096,167.23,167.19,141.67199591]
[1729546488576,2.991,167.21,167.19,141.67199591]
[1729546489074,2.991,167.21,167.18,4.38]
[1729546490877,15.14739298,167.22,167.18,4.38]
[1729546493266,15.14739298,167.22,167.17,12.1516]
[1729546494179,12.15659298,167.22,167.15,1.2287]
[1729546494479,9.16,167.21,167.15,14.7887]
[1729546494771,12.18577994,167.21,167.15,14.7887]
[1729546495372,2.9913,167.2,167.15,17.7806]
[1729546499680,2.9913,167.2,167.15,14.7887]
[1729546499881,2.9913,167.2,167.16,2.9918]
[1729546500076,2.9913,167.2,167.15,14.7887]
[1729546500283,2.9913,167.2,167.15,1.2287]
[1729546500479,2.9913,167.2,167.15,4.2207]
[1729546500884,2.9914,167.19,167.15,1.2287]
[1729546501980,12.1514,167.19,167.15,1.2287]
[1729546502277,2.9916,167.18,167.15,1.2287]
[1729546505985,2.9916,167.18,167.13,12.1523]
[1729546506782,2.9917,167.17,167.13,12.1523]
[1729546506985,9.16,167.16,167.11,155.79038739]
[1729546507188,9.16,167.16,167.11,160.17038739]
[1729546507888,12.152,167.16,167.11,160.17038739]
[1729546509083,12.152,167.16,167.11,2.9926]
[1729546509289,9.16,167.16,167.1,2.9929]
[1729546509887,2.9921,167.15,167.1,2.9929]
[1729546514399,4.38,167.17,167.11,9.16]
[1729546514702,7.3717,167.17,167.12,12.1525]
[1729546515299,7.3717,167.17,167.09,4.38]
[1729546515300,9.16,167.16,167.09,4.38]
[1729546515602,9.16,167.16,167.09,13.54]
[1729546515804,2.9923,167.14,167.09,16.5329]
[1729546516001,4.38,167.17,167.09,13.54]
[1729546516203,13.54,167.17,167.11,9.16]
[1729546516506,2.9919,167.16,167.11,12.1526]
[1729546517509,13.54,167.17,167.11,12.1526]
[1729546517810,2.9921,167.15,167.11,12.1526]
[1729546518902,12.1523,167.14,167.09,2.9929]
[1729546519102,9.16,167.14,167.09,2.9929]
[1729546519703,2.9924,167.13,167.1,2.9929]
[1729546520405,2.9924,167.13,167.09,2.9931]
[1729546521006,4.38,167.17,167.07,2.78989211]
[1729546521007,2.9927,167.11,167.07,2.78989211]
[1729546521205,2.93387421,167.1,167.07,2.78989211]
[1729546521906,2.93387421,167.1,167.07,1.49609211]
[1729546522104,2.9931,167.09,167.07,1.49609211]
[1729546522710,5.92687421,167.1,167.07,1.49609211]
[1729546524606,5.92687421,167.1,167.05,4.2627]
[1729546525116,5.92687421,167.1,167.05,2.9938]
[1729546528718,2.93387421,167.1,167.05,2.9938]
[1729546528917,2.9931,167.09,167.05,2.9938]
[1729546532109,2.9929,167.11,167.06,2.9935]
[1729546532314,12.1529,167.11,167.06,9.16]
[1729546532620,9.16,167.11,167.06,9.16]
[1729546532821,15.07652694,167.11,167.06,12.1535]
[1729546534124,12.08362694,167.11,167.08,2.9932]
[1729546534422,3.02577994,167.21,167.09,9.16]
[1729546534624,9.16,167.16,167.09,9.16]
[1729546535114,12.152,167.16,167.11,2.9926]
[1729546538824,4.38,167.19,167.09,9.16]
[1729546539021,9.16,167.17,167.11,9.16]
[1729546539521,9.16,167.17,167.14,2.992]
[1729546539719,9.16,167.17,167.11,9.16]
[1729546539923,9.16,167.18,167.11,9.16]
[1729546540125,9.16,167.18,167.15,2.992]
[1729546541625,7.3714,167.19,167.15,2.992]
[1729546541826,9.16,167.18,167.15,2.992]
[1729546550824,12.1515,167.18,167.15,2.992]
[1729546552727,9.16,167.18,167.15,2.992]
[1729546555631,2.9923,167.14,167.1,7.3728]
[1729546555935,9.16,167.17,167.1,13.54]
[1729546556129,9.16,167.17,167.14,2.992]
[1729546556330,9.16,167.18,167.14,2.992]
[1729546556835,12.1515,167.18,167.12,9.16]
[1729546557036,9.16,167.17,167.13,2.9924]
[1729546559938,4.38,167.19,167.12,9.16]
[1729546560138,9.16,167.18,167.12,9.16]
[1729546561140,12.1516,167.18,167.13,2.9923]
[1729546563834,9.16,167.18,167.13,2.9923]
[1729546564038,2.9917,167.17,167.13,2.9923]
[1729546571154,9.16,167.18,167.13,2.9923]
[1729546571354,12.1516,167.18,167.13,2.9923]
[1729546578863,9.16,167.16,167.1,7.3729]
[1729546579062,9.16,167.16,167.1,2.9929]
[1729546579864,2.9921,167.15,167.1,2.9929]
[1729546582160,2.9927,167.12,167.08,2.9932]
[1729546582362,12.1527,167.12,167.07,1.3137]
[1729546582566,12.1527,167.12,167.07,5.6937]
[1729546583765,12.1527,167.12,167.07,1.3137]
[1729546583969,12.1527,167.12,167.08,2.9932]
[1729546585067,9.16,167.1,167.04,104.43654473]
[1729546585272,9.16,167.08,167.02,9.16]
[1729546585771,9.16,167.08,167.03,9.16]
[1729546586977,9.16,167.08,167.05,2.9938]
[1729546590273,9.16,167.08,167.03,4.38]
[1729546591577,9.16,167.08,167.05,2.9938]
[1729546592669,9.16,167.08,167.03,4.38]
[1729546593574,12.1533,167.08,167.04,2.994]
[1729546596681,9.16,167.07,167.04,2.994]
[1729546600284,2.9932,167.09,167.04,2.994]
[1729546600484,9.16,167.07,167.04,2.994]
[1729546603087,9.16,167.09,167.05,2.9937]
[1729546603587,9.16,167.1,167.05,9.16]
[1729546603780,124.46202237,167.14,167.07,9.16]
[1729546604284,9.16,167.13,167.07,9.16]
[1729546605890,12.1524,167.13,167.08,2.9931]
[1729546610286,2.9924,167.13,167.08,2.9931]
[1729546610487,12.1191893,167.12,167.08,2.9931]
[1729546612990,12.1191893,167.12,167.08,2.9933]
[1729546618698,9.16,167.1,167.06,7.3735]
[1729546620897,9.16,167.1,167.06,2.9935]
[1729546621103,9.16,167.09,167.06,2.9935]
[1729546624514,9.16,167.09,167.04,4.38]
[1729546624711,2.9591893,167.12,167.04,4.38]
[1729546624910,9.16,167.09,167.04,4.38]
[1729546625509,9.16,167.09,167.05,2.9937]
[1729546625704,9.16,167.09,167.0,3.9154]
[1729546625912,9.16,167.09,167.02,9.16]
[1729546626311,2.9933,167.08,167.02,9.16]
[1729546627918,2.9933,167.08,167.01,4.38]
[1729546628216,2.9933,167.08,167.02,9.16]
[1729546628411,12.1533,167.08,167.02,9.16]
[1729546628613,12.1533,167.08,167.03,2.9941]
[1729546629412,2.9935,167.07,167.03,2.9941]
[1729546629809,9.16,167.08,167.0,3.9154]
[1729546630013,2.9937,167.06,167.01,9.16]
[1729546630217,12.1537,167.06,167.01,9.16]
[1729546630417,9.16,167.06,167.02,2.9942]
[1729546631121,12.1537,167.06,167.02,2.9942]
[1729546631320,9.16,167.06,167.02,2.9942]
[1729546636121,9.16,167.03,166.96,4.38]
[1729546636316,1.3234,167.05,166.96,4.38]
[1729546636521,9.16,166.99,166.96,4.38]
[1729546637821,9.16,166.99,166.97,2.9951]
[1729546638211,1.3234,167.05,166.94,9.16]
[1729546638212,9.16,166.98,166.94,2.9956]
[1729546638823,9.16,166.96,166.89,3.06215445]
[1729546639122,9.16,166.96,166.93,2.9959]
[1729546639926,4.38,167.02,166.93,2.9959]
[1729546640120,9.16,166.96,166.93,2.9959]
[1729546640520,2.9953,166.97,166.92,2.9961]
[1729546640725,9.16,166.94,166.81,64.64]
[1729546640926,9.16,166.92,166.85,9.16]
[1729546641127,9.16,166.92,166.86,4.38]
[1729546641523,9.16,166.92,166.88,2.9967]
[1729546642126,9.16,166.92,166.83,1.2957]
[1729546642427,9.16,166.92,166.88,2.9967]
[1729546642821,1.3512,166.96,166.87,9.16]
[1729546643019,14.8912,166.96,166.91,9.16]
[1729546643528,14.8912,166.96,166.91,12.1563]
[1729546644019,10.5112,166.96,166.91,12.1563]
[1729546644222,4.38,167.0,166.94,9.16]
[1729546644419,13.54,167.0,166.94,9.16]
[1729546644824,9.16,167.0,166.94,9.16]
[1729546645026,9.16,167.0,166.96,2.9953]
[1729546645222,9.16,167.0,166.94,9.16]
[1729546645819,4.38,167.02,166.95,9.16]
[1729546646023,9.16,167.01,166.95,9.16]
[1729546646828,9.16,167.01,166.97,2.9951]
[1729546648222,9.16,167.01,166.98,2.995]
[1729546651128,9.16,167.01,166.92,4.38]
[1729546651428,9.16,166.99,166.95,2.9955]
[1729546651629,9.16,166.99,166.93,9.16]
[1729546651825,9.16,166.99,166.95,2.9955]
[1729546654935,2.9947,167.01,166.95,2.9955]
[1729546655133,9.16,166.98,166.95,2.9955]
[1729546657627,9.16,166.99,166.95,2.9955]
[1729546660838,9.16,166.99,166.96,2.9954]
[1729546665739,4.38,167.02,166.93,10.4523]
[1729546665944,9.16,166.98,166.93,10.4523]
[1729546666441,5.655,167.04,166.95,9.16]
[1729546666739,9.16,167.0,166.95,9.16]
[1729546667141,9.16,167.0,166.93,1.2923]
[1729546667335,9.16,167.0,166.94,9.16]
[1729546667735,9.16,167.0,166.97,2.9951]
[1729546668839,2.9944,167.02,166.97,2.9951]
[1729546669038,9.16,167.0,166.97,2.9951]